[Event "Azerbaijan Women Championship 2024"]
[Site "?"]
[Date "2024.02.11"]
[Round "1.1"]
[White "Abdulla, Khayala"]
[Black "Huseynova, Lala"]
[Result "1-0"]
[ECO "B50"]
[WhiteElo "2241"]
[BlackElo "1846"]
[Annotator "NA RC"]
[PlyCount "62"]
[EventDate "2024.02.10"]
[EventType "swiss"]
[SourceTitle "playchess.com"]
[Source "ChessBase"]
[SourceQuality "1"]
[TimeControl "40/5400+30:1800+30"]

1. e4 {[%emt 0:00:03]} c5 {[%emt 0:01:38]} 2. Nf3 {[%emt 0:00:12]} d6 {[%emt 0:00:37]} 3. c3 {[%emt 0:00:29]} Nf6 {[%emt 0:00:24]} 4. h3 {[%emt 0:00:16]} g6 {[%emt 0:01:27]} 5. Bd3 {[%emt 0:00:03]} Bg7 {[%emt 0:03:05]} 6. Bc2 {[%emt 0:00:08]} e5 {[%emt 0:01:55]} 7. d4 {[%emt 0:01:49]} cxd4 {[%emt 0:01:35]} 8. cxd4 {[%emt 0:00:05]} exd4 {[%emt 0:00:19]} 9. Nxd4 {[%emt 0:01:03]} O-O {[%emt 0:05:53]} 10. O-O {[%emt 0:00:53]} Nc6 {[%emt 0:04:22]} 11. Nxc6 {[%emt 0:07:34]} bxc6 {[%emt 0:00:08]} 12. Nc3 {[%emt 0:00:03]} Be6 {[%emt 0:08:08]} 13. Bg5 {[%emt 0:01:31]} Qa5 {[%emt 0:09:35]} 14. Qd2 {[%emt 0:02:31]} Rfb8 {[%emt 0:06:02]} 15. Rab1 {[%emt 0:04:42]} d5 {[%emt 0:05:34]} 16. b4 {[%emt 0:11:18]} Rxb4 {[%emt 0:06:19]} 17. Nxd5 {[%emt 0:05:42]} cxd5 {[%emt 0:30:01]} 18. Rxb4 {[%emt 0:00:47]} Bf8 {[%emt 0:00:41]} 19. Rfb1 {[%emt 0:26:16]} Bxb4 {[%emt 0:03:22]} 20. Rxb4 {[%emt 0:00:05]} Ne8 {[%emt 0:01:11]} 21. Ba4 {[%emt 0:04:30]} Qc5 {[%emt 0:05:57]} 22. Bh6 {[%emt 0:09:05]} Qe7 {[%emt 0:02:33]} 23. Qb2 {[%emt 0:03:16]} Qf6 {[%emt 0:00:24]} 24. e5 {[%emt 0:03:53]} Qd8 {[%emt 0:00:27]} 25. Bxe8 {[%emt 0:07:58]} Qxe8 {[%emt 0:00:04]} 26. Bg5 {[%emt 0:00:08]} Rc8 {[%emt 0:00:55]} 27. Rb7 {[%emt 0:00:28]} a6 {[%emt 0:00:39]} 28. Qb4 {[%emt 0:01:39]} Qc6 {[%emt 0:00:32]} 29. Bh6 {[%emt 0:03:46]} d4 {[%emt 0:00:38]} 30. Qe7 {[%emt 0:01:22]} Bd5 {[%emt 0:00:22]} 31. Rd7 {[%emt 0:00:13]} Qe6 {[%emt 0:00:19]} 1-0

[Event "Azerbaijan Women Championship 2024"]
[Site "?"]
[Date "2024.02.11"]
[Round "1.2"]
[White "Nuriyeva, Nurtan"]
[Black "Ibrahimova, Sabina"]
[Result "0-1"]
[ECO "E61"]
[WhiteElo "1827"]
[BlackElo "2163"]
[Annotator "NA RC"]
[PlyCount "74"]
[EventDate "2024.02.10"]
[EventType "swiss"]
[SourceTitle "playchess.com"]
[Source "ChessBase"]
[SourceQuality "1"]
[TimeControl "40/5400+30:1800+30"]

1. d4 {[%emt 0:00:07]} Nf6 {[%emt 0:00:15]} 2. Nf3 {[%emt 0:00:09]} g6 {[%emt 0:00:14]} 3. c4 {[%emt 0:00:46]} Bg7 {[%emt 0:00:05]} 4. Nc3 {[%emt 0:00:07]} O-O {[%emt 0:00:17]} 5. Bg5 {[%emt 0:00:41]} d6 {[%emt 0:01:34]} 6. e3 {[%emt 0:00:07]} h6 {[%emt 0:01:34]} 7. Bh4 {[%emt 0:00:06]} c5 {[%emt 0:00:06]} 8. d5 {[%emt 0:00:44]} b5 {[%emt 0:01:50]} 9. cxb5 {[%emt 0:06:02]} a6 {[%emt 0:01:13]} 10. bxa6 {[%emt 0:09:36]} Qa5 {[%emt 0:02:42]} 11. Bxf6 {[%emt 0:03:00]} Bxf6 {[%emt 0:01:41]} 12. Qd2 {[%emt 0:00:59]} Nd7 {[%emt 0:04:58]} 13. Be2 {[%emt 0:04:29]} Bxa6 {[%emt 0:03:05]} 14. O-O {[%emt 0:16:37]} Rfb8 {[%emt 0:10:31]} 15. Rfc1 {[%emt 0:07:30]} Bxe2 {[%emt 0:19:00]} 16. Qxe2 {[%emt 0:00:37]} Qb4 {[%emt 0:02:37]} 17. Rc2 {[%emt 0:02:35]} Nb6 {[%emt 0:04:01]} 18. e4 {[%emt 0:02:57]} Nc4 {[%emt 0:06:26]} 19. Nd1 {[%emt 0:03:41]} Nb6 {[%emt 0:14:57]} 20. g3 {[%emt 0:03:26]} Rb7 {[%emt 0:07:27]} 21. Kg2 {[%emt 0:09:50]} Ra4 {[%emt 0:01:53]} 22. e5 {[%emt 0:02:30]} dxe5 {[%emt 0:00:31]} 23. Nxe5 {[%emt 0:00:52]} Qd4 {[%emt 0:03:10]} 24. Nf3 {[%emt 0:03:21]} Qxd5 {[%emt 0:01:46]} 25. Ne3 {[%emt 0:02:15]} Qc6 {[%emt 0:01:41]} 26. a3 {[%emt 0:01:16]} Nd7 {[%emt 0:03:37]} 27. Rac1 {[%emt 0:06:51]} Rb3 {[%emt 0:05:17]} 28. Kg1 {[%emt 0:01:29]} Qb7 {[%emt 0:00:07]} 29. Qd1 {[%emt 0:02:36]} Bd4 {[%emt 0:01:13]} 30. Rd2 {[%emt 0:00:47]} e5 {[%emt 0:01:01]} 31. Nxd4 {[%emt 0:03:34]} exd4 {[%emt 0:00:26]} 32. Nc4 {[%emt 0:00:28]} Rxc4 {[%emt 0:00:21]} 33. Rxc4 {[%emt 0:01:47]} Ne5 {[%emt 0:00:03]} 34. Rxc5 {[%emt 0:05:04]} Nf3+ {[%emt 0:00:05]} 35. Kf1 {[%emt 0:00:10]} Nxd2+ {[%emt 0:01:40]} 36. Qxd2 {[%emt 0:00:09]} Rxb2 {[%emt 0:00:23]} 37. Rc2 {[%emt 0:01:13]} Rb1+ {[%emt 0:00:22]} 0-1

[Event "Azerbaijan Women Championship 2024"]
[Site "?"]
[Date "2024.02.11"]
[Round "1.3"]
[White "Allahverdiyeva, Ayan"]
[Black "Valiyeva, Asnad"]
[Result "1/2-1/2"]
[ECO "B12"]
[WhiteElo "2148"]
[BlackElo "1614"]
[Annotator "NA RC"]
[PlyCount "180"]
[EventDate "2024.02.10"]
[EventType "swiss"]
[SourceTitle "playchess.com"]
[Source "ChessBase"]
[SourceQuality "1"]
[TimeControl "40/5400+30:1800+30"]

1. e4 {[%emt 0:04:55]} c6 {[%emt 0:00:21]} 2. d4 {[%emt 0:00:07]} d5 {[%emt 0:00:43]} 3. e5 {[%emt 0:00:11]} Bf5 {[%emt 0:00:51]} 4. h4 {[%emt 0:00:06]} h5 {[%emt 0:00:12]} 5. Bd3 {[%emt 0:00:05]} Bxd3 {[%emt 0:00:38]} 6. Qxd3 {[%emt 0:00:06]} e6 {[%emt 0:00:04]} 7. Bg5 {[%emt 0:00:08]} Qb6 {[%emt 0:01:31]} 8. Nd2 {[%emt 0:02:22]} c5 {[%emt 0:04:46]} 9. Ne2 {[%emt 0:03:15]} Nc6 {[%emt 0:01:22]} 10. O-O {[%emt 0:02:27]} Nge7 {[%emt 0:02:53]} 11. c4 {[%emt 0:11:42]} Qa6 {[%emt 0:10:39]} 12. Rfd1 {[%emt 0:36:48]} Nf5 {[%emt 0:09:09]} 13. b4 {[%emt 0:19:29]} Nxb4 {[%emt 0:09:07]} 14. Qb1 {[%emt 0:01:55]} dxc4 {[%emt 0:06:28]} 15. d5 {[%emt 0:03:08]} Nxd5 {[%emt 0:01:47]} 16. Nxc4 {[%emt 0:00:04]} Be7 {[%emt 0:02:05]} 17. Bxe7 {[%emt 0:02:42]} Ndxe7 {[%emt 0:00:15]} 18. Nd6+ {[%emt 0:00:38]} Nxd6 {[%emt 0:00:27]} 19. exd6 {[%emt 0:00:02]} Nd5 {[%emt 0:00:45]} 20. d7+ {[%emt 0:00:25]} Ke7 {[%emt 0:02:57]} 21. Rxd5 {[%emt 0:04:26]} exd5 {[%emt 0:04:18]} 22. Nf4 {[%emt 0:00:04]} Rad8 {[%emt 0:04:13]} 23. Qf5 {[%emt 0:01:02]} Qa5 {[%emt 0:02:57]} 24. Nxd5+ {[%emt 0:01:36]} Kf8 {[%emt 0:00:35]} 25. Rd1 {[%emt 0:00:52]} Qa4 {[%emt 0:05:44]} 26. Nc3 {[%emt 0:01:03]} Qc6 {[%emt 0:00:06]} 27. Ne4 {[%emt 0:00:28]} Rh6 {[%emt 0:01:17]} 28. Ng5 {[%emt 0:00:46]} Qf6 {[%emt 0:08:53]} 29. Qxc5+ {[%emt 0:00:04]} Qe7 {[%emt 0:00:21]} 30. Qf5 {[%emt 0:00:07]} Kg8 {[%emt 0:01:52]} 31. Rd3 {[%emt 0:00:52]} Rg6 {[%emt 0:01:43]} 32. Re3 {[%emt 0:00:40]} Rxg5 {[%emt 0:02:44]} 33. Rxe7 {[%emt 0:00:43]} Rxf5 {[%emt 0:00:03]} 34. Re8+ {[%emt 0:00:02]} Kh7 {[%emt 0:00:06]} 35. Rxd8 {[%emt 0:00:03]} Rd5 {[%emt 0:00:04]} 36. Kf1 {[%emt 0:00:36]} Kg6 {[%emt 0:00:05]} 37. Ke2 {[%emt 0:00:10]} Kf6 {[%emt 0:00:25]} 38. Ra8 {[%emt 0:01:55]} Rxd7 {[%emt 0:00:30]} 39. Rxa7 {[%emt 0:00:04]} g6 {[%emt 0:00:16]} 40. Ke3 {[%emt 0:00:00]} Ke6 {[%emt 0:00:00]} 41. f3 {[%emt 0:02:26]} Kd6 {[%emt 0:04:30]} 42. g4 {[%emt 0:04:37]} hxg4 {[%emt 0:00:59]} 43. fxg4 {[%emt 0:00:04]} Ke6 {[%emt 0:00:14]} 44. a4 {[%emt 0:03:51]} f5 {[%emt 0:07:37]} 45. Ra5 {[%emt 0:07:46]} fxg4 {[%emt 0:02:58]} 46. Rg5 {[%emt 0:00:03]} Kf6 {[%emt 0:00:29]} 47. Rxg4 {[%emt 0:00:03]} Rd6 {[%emt 0:03:51]} 48. Rf4+ {[%emt 0:01:22]} Ke5 {[%emt 0:01:11]} 49. Kf3 {[%emt 0:00:15]} Rd1 {[%emt 0:00:31]} 50. Rb4 {[%emt 0:00:13]} Ra1 {[%emt 0:00:42]} 51. Ke3 {[%emt 0:03:16]} Ra3+ {[%emt 0:00:48]} 52. Kd2 {[%emt 0:00:03]} Kd5 {[%emt 0:01:41]} 53. Rg4 {[%emt 0:01:17]} Rh3 {[%emt 0:01:20]} 54. Ke2 {[%emt 0:00:37]} Ke5 {[%emt 0:00:38]} 55. Rb4 {[%emt 0:00:04]} Ra3 {[%emt 0:00:20]} 56. Kd2 {[%emt 0:00:05]} Kd5 {[%emt 0:00:05]} 57. Kc2 {[%emt 0:00:04]} Kc5 {[%emt 0:00:43]} 58. Rg4 {[%emt 0:00:05]} Rh3 {[%emt 0:00:07]} 59. Kb2 {[%emt 0:00:27]} Kd5 {[%emt 0:00:58]} 60. Rf4 {[%emt 0:00:31]} Kc5 {[%emt 0:00:59]} 61. Kc2 {[%emt 0:00:12]} Rg3 {[%emt 0:02:06]} 62. Kd2 {[%emt 0:00:17]} Kd5 {[%emt 0:00:05]} 63. Rb4 {[%emt 0:00:30]} Ra3 {[%emt 0:00:10]} 64. Ke2 {[%emt 0:00:21]} Ke5 {[%emt 0:00:18]} 65. Kf2 {[%emt 0:00:03]} Kf5 {[%emt 0:00:04]} 66. Kg2 {[%emt 0:00:04]} Ke5 {[%emt 0:00:18]} 67. Rc4 {[%emt 0:00:39]} Rb3 {[%emt 0:00:06]} 68. Kf2 {[%emt 0:01:02]} Kf5 {[%emt 0:00:06]} 69. Rd4 {[%emt 0:00:34]} Rc3 {[%emt 0:00:13]} 70. Ke2 {[%emt 0:00:22]} Ke5 {[%emt 0:00:11]} 71. Rb4 {[%emt 0:00:07]} Ra3 {[%emt 0:00:07]} 72. Kd2 {[%emt 0:00:53]} Kd5 {[%emt 0:00:14]} 73. Rf4 {[%emt 0:00:04]} Rg3 {[%emt 0:00:07]} 74. Ke2 {[%emt 0:00:39]} Ke5 {[%emt 0:00:21]} 75. Rc4 {[%emt 0:00:02]} Rb3 {[%emt 0:00:05]} 76. Rg4 {[%emt 0:01:08]} Rh3 {[%emt 0:00:05]} 77. Kd2 {[%emt 0:00:20]} Kd5 {[%emt 0:00:05]} 78. Kc2 {[%emt 0:00:41]} Kc5 {[%emt 0:00:04]} 79. Re4 {[%emt 0:00:07]} Rf3 {[%emt 0:00:14]} 80. Re5+ {[%emt 0:00:43]} Kb4 {[%emt 0:00:52]} 81. Re4+ {[%emt 0:00:46]} Kc5 {[%emt 0:00:06]} 82. Kd1 {[%emt 0:00:18]} Kd5 {[%emt 0:00:53]} 83. Rg4 {[%emt 0:00:11]} Rh3 {[%emt 0:00:05]} 84. Kd2 {[%emt 0:00:06]} Ke5 {[%emt 0:02:09]} 85. Rb4 {[%emt 0:00:32]} Kd5 {[%emt 0:01:29]} 86. Kc2 {[%emt 0:02:30]} Kc6 {[%emt 0:00:57]} 87. Kb2 {[%emt 0:00:20]} Rg3 {[%emt 0:00:08]} 88. Kc2 {[%emt 0:01:08]} Rh3 {[%emt 0:00:18]} 89. Kd2 {[%emt 0:00:05]} Rg3 {[%emt 0:00:15]} 90. Ke2 {[%emt 0:00:04]} g5 {[%emt 0:00:31]} 1/2-1/2

[Event "Azerbaijan Women Championship 2024"]
[Site "?"]
[Date "2024.02.11"]
[Round "1.4"]
[White "Bashirli, Saadat"]
[Black "Hajiyeva, Laman"]
[Result "1/2-1/2"]
[ECO "D10"]
[WhiteElo "1608"]
[BlackElo "2121"]
[Annotator "NA RC"]
[PlyCount "83"]
[EventDate "2024.02.10"]
[EventType "swiss"]
[SourceTitle "playchess.com"]
[Source "ChessBase"]
[SourceQuality "1"]
[TimeControl "40/5400+30:1800+30"]

1. d4 {[%emt 0:00:02]} d5 {[%emt 0:00:09]} 2. c4 {[%emt 0:00:07]} c6 {[%emt 0:00:03]} 3. e3 {[%emt 0:00:08]} Nf6 {[%emt 0:00:56]} 4. Nc3 {[%emt 0:00:11]} Bf5 {[%emt 0:01:10]} 5. cxd5 {[%emt 0:01:30]} cxd5 {[%emt 0:00:06]} 6. Qb3 {[%emt 0:00:31]} Nc6 {[%emt 0:05:17]} 7. Qxb7 {[%emt 0:08:05]} Bd7 {[%emt 0:00:39]} 8. Qb3 {[%emt 0:02:12]} Rb8 {[%emt 0:00:23]} 9. Qd1 {[%emt 0:01:02]} e5 {[%emt 0:00:22]} 10. dxe5 {[%emt 0:05:46]} Nxe5 {[%emt 0:01:09]} 11. Be2 {[%emt 0:03:41]} Bd6 {[%emt 0:03:13]} 12. Nf3 {[%emt 0:01:38]} Nxf3+ {[%emt 0:04:43]} 13. Bxf3 {[%emt 0:01:25]} Qc7 {[%emt 0:01:45]} 14. h3 {[%emt 0:04:47]} O-O {[%emt 0:00:51]} 15. O-O {[%emt 0:01:41]} Rfd8 {[%emt 0:01:34]} 16. Ne2 {[%emt 0:07:44]} Bb5 {[%emt 0:07:47]} 17. Re1 {[%emt 0:05:21]} Ne4 {[%emt 0:09:25]} 18. Bxe4 {[%emt 0:05:02]} dxe4 {[%emt 0:00:20]} 19. Nd4 {[%emt 0:01:14]} Bh2+ {[%emt 0:08:47]} 20. Kh1 {[%emt 0:00:02]} Be5 {[%emt 0:00:32]} 21. Bd2 {[%emt 0:12:40]} Bxd4 {[%emt 0:07:34]} 22. exd4 {[%emt 0:00:15]} Rxd4 {[%emt 0:00:20]} 23. Bf4 {[%emt 0:01:52]} Rxd1 {[%emt 0:03:40]} 24. Bxc7 {[%emt 0:00:14]} Rxa1 {[%emt 0:00:45]} 25. Rxa1 {[%emt 0:00:03]} Rc8 {[%emt 0:00:25]} 26. Rd1 {[%emt 0:04:50]} Bd3 {[%emt 0:01:23]} 27. Bf4 {[%emt 0:03:41]} f5 {[%emt 0:03:01]} 28. Rc1 {[%emt 0:02:48]} Rxc1+ {[%emt 0:01:55]} 29. Bxc1 {[%emt 0:00:08]} Kf7 {[%emt 0:00:54]} 30. Be3 {[%emt 0:04:05]} a6 {[%emt 0:00:07]} 31. Kh2 {[%emt 0:03:37]} Bc4 {[%emt 0:08:11]} 32. b3 {[%emt 0:02:20]} Be2 {[%emt 0:03:46]} 33. Kg3 {[%emt 0:03:49]} Ke6 {[%emt 0:00:42]} 34. h4 {[%emt 0:02:45]} Bf1 {[%emt 0:06:07]} 35. f3 {[%emt 0:04:34]} Kd5 {[%emt 0:04:09]} 36. Kf2 {[%emt 0:03:54]} Bd3 {[%emt 0:00:19]} 37. g4 {[%emt 0:02:00]} exf3 {[%emt 0:06:10]} 38. Kxf3 {[%emt 0:00:48]} fxg4+ {[%emt 0:01:15]} 39. Kxg4 {[%emt 0:00:17]} Bb1 {[%emt 0:00:15]} 40. a3 {[%emt 0:00:00]} Bc2 {[%emt 0:00:00]} 41. b4 {[%emt 0:01:56]} Kc4 {[%emt 0:00:31]} 42. Bc5 {[%emt 0:05:49]} 1/2-1/2

[Event "Azerbaijan Women Championship 2024"]
[Site "?"]
[Date "2024.02.11"]
[Round "1.5"]
[White "Abdinova, Narmin"]
[Black "Huseynli, Ayan"]
[Result "1-0"]
[ECO "C02"]
[WhiteElo "2061"]
[BlackElo "1475"]
[Annotator "NA RC"]
[PlyCount "87"]
[EventDate "2024.02.10"]
[EventType "swiss"]
[SourceTitle "playchess.com"]
[Source "ChessBase"]
[SourceQuality "1"]
[TimeControl "40/5400+30:1800+30"]

1. e4 {[%emt 0:00:32]} e6 {[%emt 0:00:08]} 2. d4 {[%emt 0:00:19]} d5 {[%emt 0:00:07]} 3. e5 {[%emt 0:00:20]} c5 {[%emt 0:00:07]} 4. c3 {[%emt 0:00:11]} Qb6 {[%emt 0:00:08]} 5. Nf3 {[%emt 0:00:09]} Nc6 {[%emt 0:00:15]} 6. Bd3 {[%emt 0:00:29]} cxd4 {[%emt 0:00:09]} 7. O-O {[%emt 0:04:22]} Bd7 {[%emt 0:04:02]} 8. Re1 {[%emt 0:00:29]} dxc3 {[%emt 0:03:55]} 9. Nxc3 {[%emt 0:03:05]} Nb4 {[%emt 0:03:16]} 10. Be3 {[%emt 0:01:11]} Bc5 {[%emt 0:04:37]} 11. Na4 {[%emt 0:02:12]} Bxa4 {[%emt 0:00:29]} 12. Qxa4+ {[%emt 0:00:02]} Nc6 {[%emt 0:01:21]} 13. Bxc5 {[%emt 0:04:54]} Qxc5 {[%emt 0:00:08]} 14. Qg4 {[%emt 0:01:13]} g6 {[%emt 0:04:57]} 15. a3 {[%emt 0:04:23]} Nge7 {[%emt 0:04:43]} 16. Rac1 {[%emt 0:03:53]} Qb6 {[%emt 0:02:15]} 17. b4 {[%emt 0:00:47]} a6 {[%emt 0:06:21]} 18. h4 {[%emt 0:08:18]} h5 {[%emt 0:13:08]} 19. Qg5 {[%emt 0:08:58]} Qd8 {[%emt 0:14:17]} 20. Qf6 {[%emt 0:03:57]} Rf8 {[%emt 0:02:38]} 21. Qf4 {[%emt 0:07:02]} Rh8 {[%emt 0:05:43]} 22. a4 {[%emt 0:13:02]} Nf5 {[%emt 0:11:26]} 23. Bxf5 {[%emt 0:01:41]} gxf5 {[%emt 0:00:14]} 24. b5 {[%emt 0:08:56]} Na5 {[%emt 0:03:57]} 25. bxa6 {[%emt 0:08:04]} Rxa6 {[%emt 0:03:58]} 26. Red1 {[%emt 0:02:12]} Nc6 {[%emt 0:01:54]} 27. Rd2 {[%emt 0:01:17]} Qa5 {[%emt 0:01:48]} 28. Rb2 {[%emt 0:02:29]} Rb6 {[%emt 0:01:42]} 29. Rcb1 {[%emt 0:01:49]} Rxb2 {[%emt 0:00:22]} 30. Rxb2 {[%emt 0:00:01]} Qc7 {[%emt 0:00:31]} 31. Qg5 {[%emt 0:03:44]} Ne7 {[%emt 0:04:38]} 32. Qd2 {[%emt 0:05:53]} Nc6 {[%emt 0:01:09]} 33. Qe3 {[%emt 0:00:30]} Rg8 {[%emt 0:00:42]} 34. Qc5 {[%emt 0:00:33]} Kd7 {[%emt 0:00:56]} 35. Qb5 {[%emt 0:00:31]} Rg4 {[%emt 0:01:20]} 36. Ng5 {[%emt 0:00:31]} Qxe5 {[%emt 0:00:25]} 37. g3 {[%emt 0:00:29]} Qc7 {[%emt 0:00:37]} 38. Nxf7 {[%emt 0:00:23]} Rc4 {[%emt 0:00:21]} 39. a5 {[%emt 0:00:36]} Qxa5 {[%emt 0:00:38]} 40. Ne5+ {[%emt 0:00:00]} Ke8 {[%emt 0:00:00]} 41. Nxc4 {[%emt 0:00:37]} Qe1+ {[%emt 0:01:54]} 42. Kh2 {[%emt 0:00:45]} dxc4 {[%emt 0:00:34]} 43. Qxc4 {[%emt 0:01:07]} Ne7 {[%emt 0:04:31]} 44. Re2 {[%emt 0:00:43]} 1-0

[Event "Azerbaijan Women Championship 2024"]
[Site "?"]
[Date "2024.02.11"]
[Round "1.6"]
[White "Rzali, Leyla"]
[Black "Rzali, Sabina"]
[Result "0-1"]
[ECO "C01"]
[WhiteElo "1473"]
[BlackElo "2023"]
[Annotator "NA RC"]
[PlyCount "56"]
[EventDate "2024.02.10"]
[EventType "swiss"]
[SourceTitle "playchess.com"]
[Source "ChessBase"]
[SourceQuality "1"]
[TimeControl "40/5400+30:1800+30"]

1. e4 {[%emt 0:00:02]} e6 {[%emt 0:00:07]} 2. d4 {[%emt 0:00:02]} d5 {[%emt 0:00:09]} 3. exd5 {[%emt 0:00:05]} exd5 {[%emt 0:00:07]} 4. Be2 {[%emt 0:00:03]} Bd6 {[%emt 0:00:16]} 5. Nf3 {[%emt 0:00:02]} Ne7 {[%emt 0:00:25]} 6. Be3 {[%emt 0:00:11]} Nbc6 {[%emt 0:00:08]} 7. Nc3 {[%emt 0:00:02]} Bf5 {[%emt 0:01:14]} 8. Qd2 {[%emt 0:00:08]} Qd7 {[%emt 0:00:38]} 9. O-O-O {[%emt 0:00:27]} a6 {[%emt 0:02:18]} 10. Rhe1 {[%emt 0:00:07]} Nb4 {[%emt 0:00:45]} 11. Bd3 {[%emt 0:00:17]} Nxd3+ {[%emt 0:00:29]} 12. cxd3 {[%emt 0:00:01]} b5 {[%emt 0:01:38]} 13. Bf4 {[%emt 0:00:16]} O-O {[%emt 0:02:03]} 14. Ne5 {[%emt 0:00:11]} Bxe5 {[%emt 0:00:49]} 15. dxe5 {[%emt 0:00:08]} b4 {[%emt 0:01:43]} 16. Ne2 {[%emt 0:00:05]} c5 {[%emt 0:00:37]} 17. Qe3 {[%emt 0:00:04]} d4 {[%emt 0:00:46]} 18. Qg3 {[%emt 0:00:02]} Qd5 {[%emt 0:00:45]} 19. b3 {[%emt 0:00:12]} a5 {[%emt 0:02:29]} 20. h4 {[%emt 0:00:15]} a4 {[%emt 0:00:14]} 21. Kb2 {[%emt 0:00:04]} axb3 {[%emt 0:00:11]} 22. axb3 {[%emt 0:00:02]} Ra3 {[%emt 0:00:32]} 23. Nc1 {[%emt 0:00:07]} Be6 {[%emt 0:00:52]} 24. Bh6 {[%emt 0:00:17]} Nf5 {[%emt 0:00:19]} 25. Qg5 {[%emt 0:00:33]} Rfa8 {[%emt 0:00:28]} 26. Bxg7 {[%emt 0:00:24]} Rxb3+ {[%emt 0:00:17]} 27. Kc2 {[%emt 0:00:01]} Rc3+ {[%emt 0:00:17]} 28. Kd2 {[%emt 0:00:01]} Ra2+ {[%emt 0:00:19]} 0-1

[Event "Azerbaijan Women Championship 2024"]
[Site "?"]
[Date "2024.02.11"]
[Round "1.7"]
[White "Hasanova, Turkan"]
[Black "Huseynova, Dinara"]
[Result "1-0"]
[ECO "A47"]
[WhiteElo "2000"]
[BlackElo "1453"]
[Annotator "NA RC"]
[PlyCount "49"]
[EventDate "2024.02.10"]
[EventType "swiss"]
[SourceTitle "playchess.com"]
[Source "ChessBase"]
[SourceQuality "1"]
[TimeControl "40/5400+30:1800+30"]

1. d4 {[%emt 0:00:10]} Nf6 {[%emt 0:01:15]} 2. Bf4 {[%emt 0:00:07]} b6 {[%emt 0:00:30]} 3. Nf3 {[%emt 0:02:20]} Bb7 {[%emt 0:00:40]} 4. e3 {[%emt 0:02:07]} e6 {[%emt 0:00:07]} 5. Nbd2 {[%emt 0:01:54]} d6 {[%emt 0:01:13]} 6. Bd3 {[%emt 0:05:52]} Nbd7 {[%emt 0:01:36]} 7. c3 {[%emt 0:06:25]} g6 {[%emt 0:01:19]} 8. Qc2 {[%emt 0:01:48]} Bg7 {[%emt 0:05:16]} 9. h4 {[%emt 0:04:25]} Qe7 {[%emt 0:05:38]} 10. Ne4 {[%emt 0:17:24]} O-O-O {[%emt 0:06:53]} 11. a4 {[%emt 0:07:03]} e5 {[%emt 0:03:50]} 12. Bg5 {[%emt 0:12:47]} exd4 {[%emt 0:10:46]} 13. Nxf6 {[%emt 0:02:32]} Bxf6 {[%emt 0:01:37]} 14. cxd4 {[%emt 0:02:23]} Bxg5 {[%emt 0:07:27]} 15. hxg5 {[%emt 0:00:59]} Bxf3 {[%emt 0:02:36]} 16. gxf3 {[%emt 0:01:13]} Qxg5 {[%emt 0:04:02]} 17. Ba6+ {[%emt 0:00:48]} Kb8 {[%emt 0:00:07]} 18. a5 {[%emt 0:04:16]} c5 {[%emt 0:02:43]} 19. Qa4 {[%emt 0:06:32]} Kc7 {[%emt 0:04:41]} 20. Bd3 {[%emt 0:06:37]} Ra8 {[%emt 0:02:31]} 21. Be4 {[%emt 0:00:59]} d5 {[%emt 0:00:10]} 22. f4 {[%emt 0:00:49]} Qe7 {[%emt 0:01:36]} 23. Bxd5 {[%emt 0:00:26]} Rab8 {[%emt 0:00:19]} 24. axb6+ {[%emt 0:01:57]} axb6 {[%emt 0:00:17]} 25. Qb5 {[%emt 0:02:16]} 1-0